[Event "Early-Titled-Tuesday-Blitz-April-02-2024"]
[Site "Chess.com"]
[Date "2024.04.02"]
[Round "1"]
[White "ProphetReborn"]
[Black "venturov"]
[Result "1-0"]
[WhiteElo "2918"]
[BlackElo "2523"]
[TimeControl "180+1"]
[EndTime "8:06:05 PDT"]
[Termination "ProphetReborn won by checkmate"]

1. e4 {[%clk 0:03:00.9]} 1... Nf6 {[%clk 0:03:00.4]} 2. e5 {[%clk 0:03:00.5]}
2... Nd5 {[%clk 0:03:00.9]} 3. c4 {[%clk 0:03:00.4]} 3... Nb6 {[%clk 0:03:01]}
4. d4 {[%clk 0:03:01.1]} 4... d6 {[%clk 0:03:01.6]} 5. f4 {[%clk 0:03:01.7]}
5... g6 {[%clk 0:03:01.8]} 6. Nf3 {[%clk 0:03:01.9]} 6... Bg7 {[%clk 0:03:02.2]}
7. Nc3 {[%clk 0:03:02.4]} 7... Be6 {[%clk 0:03:00.8]} 8. d5 {[%clk 0:03:01.9]}
8... Bc8 {[%clk 0:03:01.1]} 9. a4 {[%clk 0:03:02]} 9... a5 {[%clk 0:03:00.1]}
10. Be3 {[%clk 0:03:01.8]} 10... O-O {[%clk 0:02:59.7]} 11. Be2 {[%clk
0:02:57.1]} 11... Bg4 {[%clk 0:02:58.9]} 12. exd6 {[%clk 0:02:51.3]} 12... exd6
{[%clk 0:02:50.4]} 13. O-O {[%clk 0:02:49.1]} 13... Re8 {[%clk 0:02:49.8]} 14.
Qd2 {[%clk 0:02:47.5]} 14... Bxf3 {[%clk 0:02:45.8]} 15. Rxf3 {[%clk 0:02:47.3]}
15... Na6 {[%clk 0:02:44.9]} 16. Bd4 {[%clk 0:02:42.9]} 16... Nc5 {[%clk
0:02:41.2]} 17. Bxg7 {[%clk 0:02:42.2]} 17... Kxg7 {[%clk 0:02:42.1]} 18. Re1
{[%clk 0:02:40]} 18... f5 {[%clk 0:02:39]} 19. Qc2 {[%clk 0:02:37]} 19... Qf6
{[%clk 0:02:35.7]} 20. Rd1 {[%clk 0:02:31.6]} 20... Nbxa4 {[%clk 0:02:23.2]} 21.
Nb5 {[%clk 0:02:25.4]} 21... Qxb2 {[%clk 0:02:09]} 22. Qxb2+ {[%clk 0:02:21]}
22... Nxb2 {[%clk 0:02:09.9]} 23. Rd2 {[%clk 0:02:21.3]} 23... Rxe2 {[%clk
0:01:39.6]} 24. Rxe2 {[%clk 0:02:18.3]} 24... Nxc4 {[%clk 0:01:40.1]} 25. Nxc7
{[%clk 0:02:18.4]} 25... Rc8 {[%clk 0:01:30.4]} 26. Re7+ {[%clk 0:02:15.1]}
26... Kf6 {[%clk 0:01:23.6]} 27. Rxh7 {[%clk 0:02:14.5]} 27... a4 {[%clk
0:01:16.7]} 28. Nb5 {[%clk 0:02:14]} 28... Ne4 {[%clk 0:01:07.9]} 29. Rxb7
{[%clk 0:02:10.1]} 29... a3 {[%clk 0:01:07.5]} 30. Ra7 {[%clk 0:02:06.8]} 30...
Rb8 {[%clk 0:01:04.2]} 31. Nxa3 {[%clk 0:02:04.9]} 31... Nxa3 {[%clk 0:01:01.9]}
32. Raxa3 {[%clk 0:02:05.2]} 32... Rb1+ {[%clk 0:01:01.9]} 33. Rf1 {[%clk
0:02:04.9]} 33... Rb2 {[%clk 0:00:46.4]} 34. Rd3 {[%clk 0:02:02.5]} 34... Nc5
{[%clk 0:00:31.7]} 35. Rdd1 {[%clk 0:02:00.3]} 35... Ne4 {[%clk 0:00:31.3]} 36.
h3 {[%clk 0:01:58.4]} 36... Ng3 {[%clk 0:00:29.6]} 37. Rf2 {[%clk 0:01:57.6]}
37... Rb4 {[%clk 0:00:24.5]} 38. Kh2 {[%clk 0:01:56.5]} 38... Ne4 {[%clk
0:00:22.5]} 39. Rf3 {[%clk 0:01:57]} 39... Nc5 {[%clk 0:00:20.2]} 40. Rd2 {[%clk
0:01:39.7]} 40... Ne4 {[%clk 0:00:20.3]} 41. Rc2 {[%clk 0:01:39.7]} 41... Rd4
{[%clk 0:00:19.7]} 42. Rc8 {[%clk 0:01:39.5]} 42... Rxd5 {[%clk 0:00:20]} 43.
Rf8+ {[%clk 0:01:39.2]} 43... Kg7 {[%clk 0:00:19.7]} 44. Ra8 {[%clk 0:01:40.1]}
44... Rd2 {[%clk 0:00:19.2]} 45. h4 {[%clk 0:01:39.9]} 45... d5 {[%clk
0:00:18.7]} 46. Rd8 {[%clk 0:01:39.2]} 46... d4 {[%clk 0:00:18.8]} 47. Ra3
{[%clk 0:01:39.2]} 47... Nf2 {[%clk 0:00:17.8]} 48. Ra7+ {[%clk 0:01:38.3]}
48... Kf6 {[%clk 0:00:12.7]} 49. Rd6# {[%clk 0:01:38.1]} 1-0

[Event "Early-Titled-Tuesday-Blitz-April-02-2024"]
[Site "Chess.com"]
[Date "2024.04.02"]
[Round "1"]
[White "francyIM"]
[Black "Casper"]
[Result "0-1"]
[WhiteElo "2800"]
[BlackElo "2502"]
[TimeControl "180+1"]
[EndTime "8:06:05 PDT"]
[Termination "Casper won by resignation"]

1. e4 {[%clk 0:02:42.8]} 1... c6 {[%clk 0:02:59.4]} 2. Nf3 {[%clk 0:02:39.2]}
2... d5 {[%clk 0:03:00.3]} 3. d3 {[%clk 0:02:39.4]} 3... Bg4 {[%clk 0:02:59.1]}
4. h3 {[%clk 0:02:38.8]} 4... Bh5 {[%clk 0:02:58.1]} 5. exd5 {[%clk 0:02:34.2]}
5... cxd5 {[%clk 0:02:55.7]} 6. g4 {[%clk 0:02:33.1]} 6... Bg6 {[%clk
0:02:55.6]} 7. Ne5 {[%clk 0:02:33.4]} 7... Nc6 {[%clk 0:02:56]} 8. d4 {[%clk
0:02:32.7]} 8... e6 {[%clk 0:02:45.8]} 9. c3 {[%clk 0:02:29.2]} 9... Bd6 {[%clk
0:02:43.2]} 10. Qe2 {[%clk 0:02:09.7]} 10... Nge7 {[%clk 0:02:40.2]} 11. h4
{[%clk 0:02:01.9]} 11... Bxe5 {[%clk 0:02:35.4]} 12. dxe5 {[%clk 0:02:01.7]}
12... Bxb1 {[%clk 0:02:36.3]} 13. Rxb1 {[%clk 0:02:01.3]} 13... Ng6 {[%clk
0:02:37.2]} 14. h5 {[%clk 0:01:55.4]} 14... Ngxe5 {[%clk 0:02:36.2]} 15. h6
{[%clk 0:01:55.9]} 15... g5 {[%clk 0:02:18.1]} 16. Bg2 {[%clk 0:01:52]} 16...
Qf6 {[%clk 0:02:10.7]} 17. Be3 {[%clk 0:01:50.6]} 17... O-O-O {[%clk 0:02:06.3]}
18. b3 {[%clk 0:01:46.2]} 18... Qg6 {[%clk 0:02:03.6]} 19. Rd1 {[%clk 0:01:46]}
19... Rhf8 {[%clk 0:01:55.6]} 20. a4 {[%clk 0:01:39]} 20... f5 {[%clk
0:01:52.2]} 21. f3 {[%clk 0:01:34.3]} 21... f4 {[%clk 0:01:36.6]} 22. Bf2 {[%clk
0:01:32.4]} 22... Nf7 {[%clk 0:01:33.6]} 23. b4 {[%clk 0:01:30.3]} 23... Kb8
{[%clk 0:01:25.5]} 24. a5 {[%clk 0:01:28.7]} 24... e5 {[%clk 0:01:15.1]} 25. a6
{[%clk 0:01:27.8]} 25... b6 {[%clk 0:01:15.2]} 26. O-O {[%clk 0:01:27.3]} 26...
Rfe8 {[%clk 0:01:04.5]} 27. Qb5 {[%clk 0:01:26.8]} 27... Ne7 {[%clk 0:00:44]}
28. Rfe1 {[%clk 0:01:15.8]} 28... Qc6 {[%clk 0:00:43.5]} 29. Qd3 {[%clk
0:01:15.7]} 29... Ng6 {[%clk 0:00:37.9]} 30. Bf1 {[%clk 0:01:12.1]} 30... e4
{[%clk 0:00:34.3]} 31. Qd4 {[%clk 0:01:07.8]} 31... e3 {[%clk 0:00:32.9]} 32.
Bxe3 {[%clk 0:01:06.9]} 32... fxe3 {[%clk 0:00:32.6]} 33. Qxe3 {[%clk
0:01:07.8]} 33... Rxe3 {[%clk 0:00:32.2]} 0-1

[Event "Early-Titled-Tuesday-Blitz-April-02-2024"]
[Site "Chess.com"]
[Date "2024.04.02"]
[Round "1"]
[White "Kiborg95"]
[Black "Mazarini41"]
[Result "1-0"]
[WhiteElo "2854"]
[BlackElo "2498"]
[TimeControl "180+1"]
[EndTime "8:06:10 PDT"]
[Termination "Kiborg95 won on time"]

1. e4 {[%clk 0:03:00]} 1... c5 {[%clk 0:02:54]} 2. Nc3 {[%clk 0:02:58.9]} 2...
g6 {[%clk 0:02:50.6]} 3. Nge2 {[%clk 0:02:58.5]} 3... Bg7 {[%clk 0:02:49.4]} 4.
d4 {[%clk 0:02:58.4]} 4... cxd4 {[%clk 0:02:41.8]} 5. Nxd4 {[%clk 0:02:59.3]}
5... Nc6 {[%clk 0:02:42.7]} 6. Be3 {[%clk 0:02:59.7]} 6... Nf6 {[%clk
0:02:41.5]} 7. Bc4 {[%clk 0:02:59.3]} 7... O-O {[%clk 0:02:41.3]} 8. Bb3 {[%clk
0:02:58.8]} 8... d6 {[%clk 0:02:27.4]} 9. f3 {[%clk 0:02:58.7]} 9... e5 {[%clk
0:02:25.3]} 10. Ndb5 {[%clk 0:02:24.1]} 10... Ne8 {[%clk 0:02:12.4]} 11. Nd5
{[%clk 0:02:24.3]} 11... a6 {[%clk 0:02:10.9]} 12. Bb6 {[%clk 0:02:10.1]} 12...
Qg5 {[%clk 0:01:52.1]} 13. Nbc7 {[%clk 0:02:08.9]} 13... Nxc7 {[%clk 0:01:50.2]}
14. Nxc7 {[%clk 0:02:09.8]} 14... Qxg2 {[%clk 0:01:49.8]} 15. Rg1 {[%clk
0:02:08.4]} 15... Qxh2 {[%clk 0:01:41.7]} 16. Nxa8 {[%clk 0:02:07.9]} 16... Bh3
{[%clk 0:01:37.9]} 17. Qe2 {[%clk 0:01:39.8]} 17... Qxe2+ {[%clk 0:01:15.4]} 18.
Kxe2 {[%clk 0:01:40.7]} 18... Rxa8 {[%clk 0:01:16]} 19. c3 {[%clk 0:01:41.3]}
19... Kh8 {[%clk 0:01:07.5]} 20. Bxf7 {[%clk 0:01:34.2]} 20... Rf8 {[%clk
0:00:58]} 21. Bxg6 {[%clk 0:01:28.6]} 21... hxg6 {[%clk 0:00:56.6]} 22. Rh1
{[%clk 0:01:28.8]} 22... Kg8 {[%clk 0:00:52.4]} 23. Rxh3 {[%clk 0:01:28.7]}
23... Ne7 {[%clk 0:00:50.6]} 24. Rd1 {[%clk 0:01:28.1]} 24... d5 {[%clk
0:00:46.2]} 25. exd5 {[%clk 0:01:27.6]} 25... Nf5 {[%clk 0:00:46.6]} 26. d6
{[%clk 0:01:25.7]} 26... e4 {[%clk 0:00:39.1]} 27. fxe4 {[%clk 0:01:20.7]} 27...
Re8 {[%clk 0:00:39.7]} 28. d7 {[%clk 0:01:16.7]} 28... Rxe4+ {[%clk 0:00:39.1]}
29. Kd3 {[%clk 0:01:14.6]} 1-0

[Event "Early-Titled-Tuesday-Blitz-April-02-2024"]
[Site "Chess.com"]
[Date "2024.04.02"]
[Round "1"]
[White "fmcabralis"]
[Black "Andrey_Klymchuk"]
[Result "0-1"]
[WhiteElo "2403"]
[BlackElo "2711"]
[TimeControl "180+1"]
[EndTime "8:06:10 PDT"]
[Termination "Andrey_Klymchuk won by resignation"]

1. e4 {[%clk 0:03:00.9]} 1... c5 {[%clk 0:02:59.3]} 2. Nf3 {[%clk 0:03:01]} 2...
Nc6 {[%clk 0:02:59.1]} 3. d4 {[%clk 0:03:01.6]} 3... cxd4 {[%clk 0:02:59.3]} 4.
Nxd4 {[%clk 0:03:02.5]} 4... g6 {[%clk 0:02:59.6]} 5. Nc3 {[%clk 0:03:01.4]}
5... Bg7 {[%clk 0:02:59.5]} 6. Be3 {[%clk 0:03:01.6]} 6... Nf6 {[%clk
0:03:00.1]} 7. Bc4 {[%clk 0:02:54.6]} 7... Qa5 {[%clk 0:02:59.5]} 8. O-O {[%clk
0:02:52.9]} 8... d6 {[%clk 0:02:59.1]} 9. h3 {[%clk 0:02:46.1]} 9... O-O {[%clk
0:02:58.8]} 10. Bb3 {[%clk 0:02:45.8]} 10... Bd7 {[%clk 0:02:58.2]} 11. Re1
{[%clk 0:02:44.8]} 11... Qh5 {[%clk 0:02:57.6]} 12. Nd5 {[%clk 0:01:54.2]} 12...
Qxd1 {[%clk 0:02:52.2]} 13. Raxd1 {[%clk 0:01:53.7]} 13... Nxd5 {[%clk
0:02:49.1]} 14. exd5 {[%clk 0:01:51.7]} 14... Na5 {[%clk 0:02:43.1]} 15. c3
{[%clk 0:01:42]} 15... Bf6 {[%clk 0:02:39]} 16. Bc2 {[%clk 0:01:36.2]} 16... Nc4
{[%clk 0:02:37.6]} 17. Bc1 {[%clk 0:01:36.4]} 17... b5 {[%clk 0:02:36.6]} 18. b3
{[%clk 0:01:28]} 18... Nb6 {[%clk 0:02:34.9]} 19. Bd3 {[%clk 0:01:17]} 19... b4
{[%clk 0:02:05.3]} 20. Nc6 {[%clk 0:00:53.9]} 20... Bxc6 {[%clk 0:01:57.9]} 21.
dxc6 {[%clk 0:00:54.8]} 21... bxc3 {[%clk 0:01:57.8]} 22. Ba6 {[%clk 0:00:52.3]}
22... Rfc8 {[%clk 0:01:52.4]} 23. Bb7 {[%clk 0:00:46.9]} 23... Rab8 {[%clk
0:01:51.9]} 24. a4 {[%clk 0:00:34.8]} 24... Rxb7 {[%clk 0:01:42]} 25. cxb7
{[%clk 0:00:35.7]} 25... Rb8 {[%clk 0:01:42]} 26. a5 {[%clk 0:00:35.7]} 26...
Nd7 {[%clk 0:01:42.2]} 27. Be3 {[%clk 0:00:20.4]} 27... Rxb7 {[%clk 0:01:41.2]}
28. a6 {[%clk 0:00:20.7]} 28... Rxb3 {[%clk 0:01:26.8]} 29. Bxa7 {[%clk
0:00:20]} 29... c2 {[%clk 0:01:26.5]} 30. Rc1 {[%clk 0:00:13.7]} 30... Ra3
{[%clk 0:01:23.4]} 31. Rxc2 {[%clk 0:00:13.2]} 31... Rxa6 {[%clk 0:01:23.4]} 32.
Rc7 {[%clk 0:00:11.4]} 32... Ne5 {[%clk 0:01:20.6]} 33. Be3 {[%clk 0:00:10.4]}
33... h5 {[%clk 0:01:16.7]} 34. g3 {[%clk 0:00:09.1]} 34... Nf3+ {[%clk
0:01:16.2]} 35. Kf1 {[%clk 0:00:09.7]} 35... Nxe1 {[%clk 0:01:17.1]} 36. Kxe1
{[%clk 0:00:10.6]} 36... d5 {[%clk 0:01:12.6]} 37. Ke2 {[%clk 0:00:10.7]} 0-1

[Event "Early-Titled-Tuesday-Blitz-April-02-2024"]
[Site "Chess.com"]
[Date "2024.04.02"]
[Round "1"]
[White "Rawnsdale"]
[Black "FMStan15"]
[Result "1-0"]
[WhiteElo "2569"]
[BlackElo "2107"]
[TimeControl "180+1"]
[EndTime "8:06:11 PDT"]
[Termination "Rawnsdale won by checkmate"]

1. e4 {[%clk 0:03:00.9]} 1... e6 {[%clk 0:03:00]} 2. d4 {[%clk 0:02:58.7]} 2...
d5 {[%clk 0:03:00.2]} 3. e5 {[%clk 0:02:59.4]} 3... c5 {[%clk 0:03:00]} 4. c3
{[%clk 0:02:59.6]} 4... Nc6 {[%clk 0:03:00.2]} 5. Nf3 {[%clk 0:02:59.8]} 5...
Qb6 {[%clk 0:03:00.4]} 6. Be2 {[%clk 0:02:58.2]} 6... cxd4 {[%clk 0:02:59.7]} 7.
cxd4 {[%clk 0:02:59.1]} 7... Nh6 {[%clk 0:02:58.9]} 8. Nc3 {[%clk 0:02:45.1]}
8... Nf5 {[%clk 0:02:58.6]} 9. Na4 {[%clk 0:02:42.8]} 9... Qa5+ {[%clk
0:02:58.8]} 10. Bd2 {[%clk 0:02:39.4]} 10... Bb4 {[%clk 0:02:58.5]} 11. Bc3
{[%clk 0:01:51.5]} 11... b5 {[%clk 0:02:56.1]} 12. Nc5 {[%clk 0:01:48.3]} 12...
Bxc3+ {[%clk 0:02:54.2]} 13. bxc3 {[%clk 0:01:48.6]} 13... Qxc3+ {[%clk
0:02:54.3]} 14. Kf1 {[%clk 0:01:49]} 14... Qa5 {[%clk 0:01:51.6]} 15. g4 {[%clk
0:01:44.5]} 15... Nfe7 {[%clk 0:01:47.8]} 16. a4 {[%clk 0:01:32.4]} 16... b4
{[%clk 0:01:44.7]} 17. Kg2 {[%clk 0:01:20.5]} 17... O-O {[%clk 0:01:42.3]} 18.
h4 {[%clk 0:01:15.2]} 18... Ng6 {[%clk 0:01:42.2]} 19. Kg3 {[%clk 0:01:06]}
19... f5 {[%clk 0:01:38.4]} 20. h5 {[%clk 0:00:53.4]} 20... f4+ {[%clk
0:01:30.3]} 21. Kg2 {[%clk 0:00:53.8]} 21... Nge7 {[%clk 0:01:29.7]} 22. h6
{[%clk 0:00:51.3]} 22... g6 {[%clk 0:01:29.3]} 23. Rc1 {[%clk 0:00:43.3]} 23...
Qb6 {[%clk 0:01:21.7]} 24. Ng5 {[%clk 0:00:38.7]} 24... Na5 {[%clk 0:01:18.2]}
25. f3 {[%clk 0:00:30.9]} 25... b3 {[%clk 0:01:06.6]} 26. Rb1 {[%clk 0:00:30.6]}
26... Rb8 {[%clk 0:01:04.1]} 27. Bd3 {[%clk 0:00:22.4]} 27... Nc4 {[%clk
0:01:03.3]} 28. Bxc4 {[%clk 0:00:17.7]} 28... dxc4 {[%clk 0:01:02.8]} 29. Qd2
{[%clk 0:00:18.6]} 29... Nd5 {[%clk 0:01:00.1]} 30. Nce4 {[%clk 0:00:18.7]}
30... Ne3+ {[%clk 0:00:56.2]} 31. Kh3 {[%clk 0:00:18.7]} 31... Rd8 {[%clk
0:00:53.4]} 32. Nf6+ {[%clk 0:00:17]} 32... Kh8 {[%clk 0:00:53.2]} 33. Nf7#
{[%clk 0:00:16.4]} 1-0

[Event "Early-Titled-Tuesday-Blitz-April-02-2024"]
[Site "Chess.com"]
[Date "2024.04.02"]
[Round "1"]
[White "campochess"]
[Black "mightysmasher"]
[Result "0-1"]
[WhiteElo "2185"]
[BlackElo "2584"]
[TimeControl "180+1"]
[EndTime "8:06:12 PDT"]
[Termination "mightysmasher won by resignation"]

1. d4 {[%clk 0:02:58.5]} 1... d5 {[%clk 0:02:56]} 2. Bg5 {[%clk 0:02:58]} 2...
Nf6 {[%clk 0:02:55.5]} 3. Nd2 {[%clk 0:02:57.5]} 3... h6 {[%clk 0:02:55.2]} 4.
Bxf6 {[%clk 0:02:56.8]} 4... exf6 {[%clk 0:02:56.1]} 5. e3 {[%clk 0:02:56.8]}
5... Bd6 {[%clk 0:02:54.5]} 6. Bd3 {[%clk 0:02:56.4]} 6... f5 {[%clk 0:02:54.6]}
7. Ne2 {[%clk 0:02:52.9]} 7... O-O {[%clk 0:02:54.3]} 8. g3 {[%clk 0:02:51.2]}
8... Re8 {[%clk 0:02:54.1]} 9. O-O {[%clk 0:02:50.4]} 9... b6 {[%clk 0:02:53.4]}
10. c4 {[%clk 0:02:49.8]} 10... dxc4 {[%clk 0:02:51.2]} 11. Nxc4 {[%clk
0:02:47.5]} 11... g6 {[%clk 0:02:48.7]} 12. Nxd6 {[%clk 0:02:42.4]} 12... Qxd6
{[%clk 0:02:46.6]} 13. Rc1 {[%clk 0:02:42.2]} 13... Bb7 {[%clk 0:02:43.7]} 14.
Nf4 {[%clk 0:02:36.4]} 14... Nd7 {[%clk 0:02:36]} 15. Be2 {[%clk 0:02:28.7]}
15... Nf6 {[%clk 0:02:32.8]} 16. Bf3 {[%clk 0:02:28]} 16... Ne4 {[%clk
0:02:31.8]} 17. Rc2 {[%clk 0:02:22]} 17... Rac8 {[%clk 0:02:28.7]} 18. Bg2
{[%clk 0:02:20.7]} 18... a5 {[%clk 0:02:22]} 19. Qe2 {[%clk 0:02:15.3]} 19... c5
{[%clk 0:01:57.8]} 20. Rd1 {[%clk 0:02:12.1]} 20... cxd4 {[%clk 0:01:51.4]} 21.
Rxd4 {[%clk 0:02:10.1]} 21... Qe5 {[%clk 0:01:32.8]} 22. Rxc8 {[%clk 0:02:01.3]}
22... Rxc8 {[%clk 0:01:31.4]} 23. Rc4 {[%clk 0:02:00.7]} 23... Rd8 {[%clk
0:01:28.8]} 24. Nd3 {[%clk 0:01:46]} 24... Qf6 {[%clk 0:01:16.6]} 25. f3 {[%clk
0:01:25.9]} 25... Ba6 {[%clk 0:01:07.4]} 26. Qc2 {[%clk 0:01:04.8]} 26... Bxc4
{[%clk 0:01:02.3]} 27. Qxc4 {[%clk 0:01:04.6]} 27... Nc5 {[%clk 0:00:57.3]} 28.
Nf2 {[%clk 0:00:55.8]} 28... Qxb2 {[%clk 0:00:54.7]} 29. h4 {[%clk 0:00:55.6]}
29... Rd2 {[%clk 0:00:52.8]} 30. Qf1 {[%clk 0:00:53.4]} 30... Qc3 {[%clk
0:00:40.9]} 31. e4 {[%clk 0:00:50.6]} 31... Qe3 {[%clk 0:00:36.4]} 32. exf5
{[%clk 0:00:49]} 32... Nd3 {[%clk 0:00:35]} 0-1

[Event "Early-Titled-Tuesday-Blitz-April-02-2024"]
[Site "Chess.com"]
[Date "2024.04.02"]
[Round "1"]
[White "Orphanator2009"]
[Black "Azerichess"]
[Result "0-1"]
[WhiteElo "2542"]
[BlackElo "3028"]
[TimeControl "180+1"]
[EndTime "8:06:14 PDT"]
[Termination "Azerichess won by checkmate"]

1. e4 {[%clk 0:03:00.9]} 1... c5 {[%clk 0:02:57.7]} 2. Nf3 {[%clk 0:03:01.1]}
2... e6 {[%clk 0:02:58.2]} 3. d4 {[%clk 0:03:01.4]} 3... cxd4 {[%clk 0:02:59.1]}
4. Nxd4 {[%clk 0:03:01.9]} 4... Nc6 {[%clk 0:02:59.4]} 5. Nc3 {[%clk 0:03:02.2]}
5... Nf6 {[%clk 0:02:59.9]} 6. Ndb5 {[%clk 0:03:00.9]} 6... Bc5 {[%clk
0:02:58.8]} 7. Nd6+ {[%clk 0:02:56.8]} 7... Ke7 {[%clk 0:02:59]} 8. Bf4 {[%clk
0:02:57.5]} 8... e5 {[%clk 0:02:59.5]} 9. Nf5+ {[%clk 0:02:57.4]} 9... Kf8
{[%clk 0:03:00.2]} 10. Bg5 {[%clk 0:02:58.3]} 10... d6 {[%clk 0:03:00.8]} 11.
Bc4 {[%clk 0:02:50.4]} 11... h6 {[%clk 0:02:41.3]} 12. Bxf6 {[%clk 0:02:29]}
12... Qxf6 {[%clk 0:02:42.2]} 13. Nd5 {[%clk 0:02:29.4]} 13... Qd8 {[%clk
0:02:41.1]} 14. Nfe3 {[%clk 0:02:26.9]} 14... g6 {[%clk 0:02:39.1]} 15. c3
{[%clk 0:02:25]} 15... a6 {[%clk 0:02:38.9]} 16. O-O {[%clk 0:02:24.1]} 16...
Kg7 {[%clk 0:02:36.5]} 17. Qe2 {[%clk 0:02:16.6]} 17... h5 {[%clk 0:02:32.8]}
18. Rad1 {[%clk 0:02:10.9]} 18... Be6 {[%clk 0:02:29.7]} 19. Kh1 {[%clk
0:02:03.2]} 19... Rc8 {[%clk 0:01:47.7]} 20. Bb3 {[%clk 0:01:14.5]} 20... Qh4
{[%clk 0:01:36.6]} 21. f4 {[%clk 0:00:56.7]} 21... Bg4 {[%clk 0:01:35.3]} 22.
Nxg4 {[%clk 0:00:19.2]} 22... hxg4 {[%clk 0:01:36.2]} 23. g3 {[%clk 0:00:20]}
23... Qxg3 {[%clk 0:01:33.4]} 24. Nf6 {[%clk 0:00:16.4]} 24... Kxf6 {[%clk
0:01:05.8]} 25. fxe5+ {[%clk 0:00:16.5]} 25... Kg5 {[%clk 0:01:06]} 26. Qd2+
{[%clk 0:00:15.1]} 26... Be3 {[%clk 0:01:04]} 27. Qe2 {[%clk 0:00:15.1]} 27...
Nxe5 {[%clk 0:00:56.5]} 28. Rxd6 {[%clk 0:00:13.3]} 28... Bf4 {[%clk 0:00:55.8]}
29. Rf2 {[%clk 0:00:08.8]} 29... Nf3 {[%clk 0:00:50.7]} 30. Rd5+ {[%clk
0:00:09.1]} 30... f5 {[%clk 0:00:51.2]} 31. exf5 {[%clk 0:00:09.2]} 31... Qg1#
{[%clk 0:00:51.2]} 0-1

[Event "Early-Titled-Tuesday-Blitz-April-02-2024"]
[Site "Chess.com"]
[Date "2024.04.02"]
[Round "1"]
[White "RedFirePanda"]
[Black "Baku_Boulevard"]
[Result "0-1"]
[WhiteElo "2543"]
[BlackElo "3034"]
[TimeControl "180+1"]
[EndTime "8:06:16 PDT"]
[Termination "Baku_Boulevard won by checkmate"]

1. d4 {[%clk 0:03:00.9]} 1... d6 {[%clk 0:02:58.4]} 2. Bf4 {[%clk 0:02:57.2]}
2... Nf6 {[%clk 0:02:52.6]} 3. e3 {[%clk 0:02:53.6]} 3... g6 {[%clk 0:02:50.4]}
4. Nd2 {[%clk 0:02:47.1]} 4... Bg7 {[%clk 0:02:50.5]} 5. h3 {[%clk 0:02:47.1]}
5... c5 {[%clk 0:02:49.9]} 6. c3 {[%clk 0:02:44]} 6... O-O {[%clk 0:02:49.8]} 7.
Be2 {[%clk 0:02:38.2]} 7... Nc6 {[%clk 0:02:47.2]} 8. Ngf3 {[%clk 0:02:34.3]}
8... cxd4 {[%clk 0:02:43.6]} 9. exd4 {[%clk 0:02:33.1]} 9... Re8 {[%clk
0:02:43]} 10. O-O {[%clk 0:02:29.2]} 10... e5 {[%clk 0:02:42.9]} 11. dxe5 {[%clk
0:02:28.7]} 11... dxe5 {[%clk 0:02:43.8]} 12. Bh2 {[%clk 0:02:23.6]} 12... e4
{[%clk 0:02:43.5]} 13. Ne1 {[%clk 0:02:12.9]} 13... Be6 {[%clk 0:02:34.4]} 14.
Bc4 {[%clk 0:01:54.5]} 14... Qe7 {[%clk 0:02:26.1]} 15. Bxe6 {[%clk 0:01:41.2]}
15... Qxe6 {[%clk 0:02:25.9]} 16. Qb3 {[%clk 0:01:35.4]} 16... Rad8 {[%clk
0:02:23.8]} 17. Qxe6 {[%clk 0:01:22.8]} 17... Rxe6 {[%clk 0:02:23.5]} 18. Nb3
{[%clk 0:01:23.4]} 18... Nd5 {[%clk 0:02:09.2]} 19. Nc2 {[%clk 0:01:22.6]} 19...
b6 {[%clk 0:02:04.8]} 20. Rad1 {[%clk 0:01:19]} 20... Ree8 {[%clk 0:02:04.9]}
21. Rfe1 {[%clk 0:01:13.4]} 21... f5 {[%clk 0:02:04.6]} 22. Ncd4 {[%clk
0:00:55.4]} 22... Nxd4 {[%clk 0:02:02.7]} 23. Nxd4 {[%clk 0:00:55.8]} 23... Nb4
{[%clk 0:01:37.6]} 24. cxb4 {[%clk 0:00:12.4]} 24... Bxd4 {[%clk 0:01:35.4]} 25.
Rc1 {[%clk 0:00:05.6]} 25... Bxb2 {[%clk 0:01:34.1]} 26. Rc7 {[%clk 0:00:04.9]}
26... Ba3 {[%clk 0:01:22.1]} 27. Rxa7 {[%clk 0:00:04]} 27... Bxb4 {[%clk
0:01:22.2]} 28. Rb1 {[%clk 0:00:04.2]} 28... Bc5 {[%clk 0:01:22.3]} 29. Bg3
{[%clk 0:00:04.3]} 29... Rd2 {[%clk 0:01:20.4]} 30. a4 {[%clk 0:00:02.9]} 30...
e3 {[%clk 0:01:18.5]} 31. fxe3 {[%clk 0:00:03.2]} 31... Rxe3 {[%clk 0:01:19.1]}
32. Kh2 {[%clk 0:00:02.9]} 32... Ree2 {[%clk 0:01:19.7]} 33. Ra8+ {[%clk
0:00:01.8]} 33... Kf7 {[%clk 0:01:19.1]} 34. Bc7 {[%clk 0:00:01.3]} 34... Rxg2+
{[%clk 0:01:16.9]} 35. Kh1 {[%clk 0:00:01.3]} 35... Rge2 {[%clk 0:01:17.3]} 36.
Rc1 {[%clk 0:00:01.1]} 36... g5 {[%clk 0:01:16.6]} 37. Rf1 {[%clk 0:00:01.7]}
37... f4 {[%clk 0:01:16.7]} 38. Rc1 {[%clk 0:00:01.3]} 38... Rh2# {[%clk
0:01:16.6]} 0-1